fUSD/lending_fUSD_20260326
["ID","MTS","AMOUNT","RATE_DAILY","PERIOD"]
[418926436,1774567857860,-344.0,0.0002634,2]
[418926437,1774567857871,-500.0,0.00026394,2]
[418926438,1774567857884,-27666.50721604,0.000264,2]
[418926439,1774567857896,-15871.25,0.000264,2]
[418926440,1774567857908,-2000.92,0.000264,7]
[418926441,1774567857921,-2307.2065,0.000265,2]
[418926442,1774567857931,-2000.0,0.000266,2]
[418926443,1774567857940,-439.0,0.00026606,2]
[418926444,1774567857951,-1476.34,0.00026676,2]
[418926445,1774567857961,-700.0,0.00026686,7]
[418926446,1774567857973,-152.0,0.00026688,10]
[418926447,1774567857986,-1262.0,0.00026741,2]
[418926448,1774567857997,-1216.0,0.00026741,2]
[418926449,1774567858007,-924.0,0.00026741,2]
[418926450,1774567858017,-1045.0,0.00026741,2]
[418926451,1774567858028,-621.0,0.00026741,2]
[418926452,1774567858040,-200.0,0.00026783,2]
[418926453,1774567858052,-1100.0,0.0002696,7]
[418926454,1774567858064,-800.0,0.00026986,120]
[418926455,1774567858076,-250.0,0.00027,2]
[418926456,1774567858087,-1041.41039093,0.00027,2]
[418926457,1774567858099,-530.0,0.00027,2]
[418926458,1774567858110,-2000.0,0.00027,2]
[418926459,1774567858120,-299.20789288,0.00027,2]
[418926460,1774567858130,-373.43272018,0.00027,2]
[418926461,1774567858141,-894.26644375,0.00027,2]
[418926462,1774567858152,-1395.88741163,0.00027,2]
[418926463,1774567858163,-600.0,0.00027,2]
[418926464,1774567858174,-2524.610644,0.0002701,2]
[418926465,1774567858185,-445.04,0.000271,7]
[418926466,1774567858195,-1808.4,0.000271,7]
[418926467,1774567858207,-3715.64,0.00027123,2]
[418926468,1774567858218,-150.0,0.00027185,2]
[418926469,1774567858229,-150.0,0.00027191,30]
[418926470,1774567858239,-504.0,0.000272,13]
[418926471,1774567858250,-152.0,0.00027277,11]
[418926472,1774567858261,-586.37519488,0.0002729,30]
[418926473,1774567858272,-825.0,0.00027358,60]
[418926474,1774567858282,-4139.01860113,0.0002739,2]
[418926475,1774567858293,-8176.74239544,0.0002739,2]
[418926476,1774567858304,-4459.32536231,0.0002739,7]
[418926477,1774567858314,-265.24591123,0.0002739,120]
[418926478,1774567858325,-500.0,0.00027394,2]
[418926479,1774567858336,-1000.0,0.00027397,2]
[418926480,1774567858347,-1000.0,0.00027397,2]
[418926481,1774567858357,-1000.0,0.00027397,2]
[418926482,1774567858368,-1000.0,0.00027397,2]
[418926483,1774567858379,-1000.0,0.00027397,2]
[418926484,1774567858391,-1000.0,0.00027397,2]
[418926485,1774567858402,-1000.0,0.00027397,2]
[418926486,1774567858413,-1000.0,0.00027397,2]
[418926487,1774567858424,-1000.0,0.00027397,2]
[418926488,1774567858435,-1000.0,0.00027397,2]
[418926489,1774567858445,-1000.0,0.00027397,2]
[418926490,1774567858456,-1000.0,0.00027397,2]
[418926491,1774567858467,-1000.0,0.00027397,2]
[418926492,1774567858478,-1000.0,0.00027397,2]
[418926493,1774567858489,-1000.0,0.00027397,2]
[418926494,1774567858499,-1000.0,0.00027397,2]
[418926495,1774567858510,-1000.0,0.00027397,2]
[418926496,1774567858520,-1000.0,0.00027397,2]
[418926497,1774567858531,-1000.0,0.00027397,2]
[418926498,1774567858542,-1000.0,0.00027397,2]
[418926499,1774567858552,-251.83258948,0.00027397,2]
[418926500,1774567858563,-570.00288618,0.00027397,2]
[418926501,1774567858573,-2500.0,0.00027397,2]
[418926502,1774567858584,-523.17,0.00027397,2]
[418926503,1774567858595,-300.0,0.00027397,2]
[418926504,1774567858605,-1000.0,0.00027397,20]
[418926505,1774567858616,-875.6,0.00027397,2]
[418926506,1774567858627,-1456.32,0.00027397,2]
[418926507,1774567858637,-151.0,0.00027397,2]
[418926508,1774567858648,-151.0,0.00027397,2]
[418926509,1774567858660,-161.408485,0.00027397,2]
[418926510,1774567858670,-167.551275,0.00027397,2]
[418926511,1774567858681,-151.0,0.00027397,2]
[418926512,1774567858692,-151.0,0.00027397,2]
[418926513,1774567858703,-171.350993,0.00027397,2]
[418926514,1774567858713,-206.46544784,0.00027397,2]
[418926515,1774567858724,-383.454668,0.00027397,2]
[418926516,1774567858734,-383.454668,0.00027397,2]
[418926517,1774567858745,-383.454668,0.00027397,2]
[418926518,1774567858757,-383.454668,0.00027397,2]
[418926519,1774567858769,-383.454668,0.00027397,2]
[418926520,1774567858780,-383.454668,0.00027397,2]
[418926521,1774567858790,-383.454668,0.00027397,2]
[418926522,1774567858801,-383.454668,0.00027397,2]
[418926523,1774567858811,-383.454668,0.00027397,2]
[418926524,1774567858822,-383.454668,0.00027397,2]
[418926525,1774567858833,-383.454668,0.00027397,2]
[418926526,1774567858844,-383.454668,0.00027397,2]
[418926527,1774567858855,-383.454668,0.00027397,2]
[418926528,1774567858867,-383.454668,0.00027397,2]
[418926529,1774567858877,-383.454668,0.00027397,2]
[418926530,1774567858887,-383.454668,0.00027397,2]
[418926531,1774567858898,-383.454668,0.00027397,2]
[418926532,1774567858909,-383.454668,0.00027397,2]
[418926533,1774567858921,-383.454668,0.00027397,2]
[418926534,1774567858932,-383.454671,0.00027397,2]
[418926535,1774567858943,-911.943518,0.00027397,2]
[418926536,1774567858954,-911.943518,0.00027397,2]
[418926537,1774567858965,-911.943518,0.00027397,2]
[418926538,1774567858976,-911.943518,0.00027397,2]
[418926539,1774567858988,-911.943518,0.00027397,2]
[418926540,1774567858998,-911.943518,0.00027397,2]
[418926541,1774567859009,-911.943518,0.00027397,2]
[418926542,1774567859020,-911.943518,0.00027397,2]
[418926543,1774567859031,-911.943518,0.00027397,2]
[418926544,1774567859042,-911.943518,0.00027397,2]
[418926545,1774567859052,-911.943518,0.00027397,2]
[418926546,1774567859063,-911.943518,0.00027397,2]
[418926547,1774567859074,-911.943518,0.00027397,2]
[418926548,1774567859084,-911.943518,0.00027397,2]
[418926549,1774567859095,-911.943518,0.00027397,2]
[418926550,1774567859105,-911.943518,0.00027397,2]
[418926551,1774567859116,-911.943518,0.00027397,2]
[418926552,1774567859126,-911.943518,0.00027397,2]
[418926553,1774567859137,-911.943518,0.00027397,2]
[418926554,1774567859148,-911.943528,0.00027397,2]
[418926555,1774567859158,-976.802155,0.00027397,2]
[418926556,1774567859168,-976.802155,0.00027397,2]
[418926557,1774567859179,-976.802155,0.00027397,2]
[418926558,1774567859189,-976.802155,0.00027397,2]
[418926559,1774567859199,-976.802155,0.00027397,2]
[418926560,1774567859210,-1529.528782,0.00027397,2]
[418926561,1774567859220,-976.802155,0.00027397,2]
[418926562,1774567859231,-1529.528782,0.00027397,2]
[418926563,1774567859241,-976.802155,0.00027397,2]
[418926564,1774567859252,-1529.528782,0.00027397,2]
[418926565,1774567859262,-976.802155,0.00027397,2]
[418926566,1774567859273,-1529.528782,0.00027397,2]
[418926567,1774567859283,-976.802155,0.00027397,2]
[418926568,1774567859293,-1529.528782,0.00027397,2]
[418926569,1774567859303,-976.802155,0.00027397,2]
[418926570,1774567859313,-1529.528782,0.00027397,2]
[418926571,1774567859323,-976.802155,0.00027397,2]
[418926572,1774567859333,-1529.528782,0.00027397,2]
[418926573,1774567859344,-976.802155,0.00027397,2]
[418926574,1774567859354,-1529.528782,0.00027397,2]
[418926575,1774567859364,-976.802155,0.00027397,2]
[418926576,1774567859374,-1529.528782,0.00027397,2]
[418926577,1774567859385,-976.802155,0.00027397,2]
[418926578,1774567859395,-1529.528782,0.00027397,2]
[418926579,1774567859406,-976.802155,0.00027397,2]
[418926580,1774567859417,-1529.528782,0.00027397,2]
[418926581,1774567859428,-976.802155,0.00027397,2]
[418926582,1774567859439,-1529.528782,0.00027397,2]
[418926583,1774567859451,-976.802155,0.00027397,2]
[418926584,1774567859462,-1529.528782,0.00027397,2]
[418926585,1774567859472,-976.802155,0.00027397,2]
[418926586,1774567859483,-1529.528782,0.00027397,2]
[418926587,1774567859495,-976.802155,0.00027397,2]
[418926588,1774567859506,-1529.528782,0.00027397,2]
[418926589,1774567859516,-1529.528782,0.00027397,2]
[418926590,1774567859526,-976.802154,0.00027397,2]
[418926591,1774567859537,-1529.528782,0.00027397,2]
[418926592,1774567859547,-1529.528782,0.00027397,2]
[418926593,1774567859557,-1529.528782,0.00027397,2]
[418926594,1774567859568,-1529.528775,0.00027397,2]
[418926595,1774567859578,-1321.376232,0.00027397,2]
[418926596,1774567859587,-1321.376232,0.00027397,2]
[418926597,1774567859597,-1321.376232,0.00027397,2]
[418926598,1774567859607,-1321.376232,0.00027397,2]
[418926599,1774567859617,-1321.376232,0.00027397,2]
[418926600,1774567859627,-1321.376232,0.00027397,2]
[418926601,1774567859647,-1321.376232,0.00027397,2]
[418926602,1774567859661,-1321.376232,0.00027397,2]
[418926603,1774567859675,-1321.376232,0.00027397,2]
[418926604,1774567859687,-1321.376232,0.00027397,2]
[418926605,1774567859699,-1321.376232,0.00027397,2]
[418926606,1774567859711,-1321.376232,0.00027397,2]
[418926607,1774567859724,-1321.376232,0.00027397,2]
[418926608,1774567859736,-1321.376232,0.00027397,2]
[418926609,1774567859747,-1321.376232,0.00027397,2]
[418926610,1774567859759,-1321.376232,0.00027397,2]
[418926611,1774567859771,-1321.376232,0.00027397,2]
[418926612,1774567859783,-1321.376232,0.00027397,2]
[418926613,1774567859794,-1321.376232,0.00027397,2]
[418926614,1774567859805,-1321.376223,0.00027397,2]
[418926615,1774567859816,-167.0,0.00027397,2]
[418926616,1774567859828,-167.27817896,0.00027397,2]
[418926617,1774567859839,-167.0,0.00027397,2]
[418926618,1774567859850,-167.0,0.00027397,2]
[418926619,1774567859862,-182.29090777,0.00027397,2]
[418926620,1774567859873,-167.0,0.00027397,2]
[418926621,1774567859884,-167.0,0.00027397,2]
[418926622,1774567859895,-167.0,0.00027397,2]
[418926623,1774567859907,-176.16559943,0.000274,5]
[418926624,1774567859917,-5330.0,0.00027463,7]
[418926625,1774567859928,-202.64103072,0.000275,2]
[418926626,1774567859939,-553.48351754,0.000275,2]
[418926627,1774567859949,-3032.3965,0.000277,2]
[418926628,1774567859960,-1364.69,0.000278,7]
[418926629,1774567859972,-2097.88,0.000278,7]
[418926630,1774567859985,-200.0,0.00027834,2]
[418926631,1774567859996,-152.0,0.00027867,12]
[418926632,1774567860009,-15871.25,0.000279,2]
[418926633,1774567860020,-1640.97,0.00027972,2]
[418926634,1774567860031,-500.0,0.0002798,120]
[418926635,1774567860042,-51220.38520511,0.00028,2]
[418926636,1774567860053,-151.0,0.00028,2]
[418926637,1774567860064,-160.0,0.00028,2]
[418926638,1774567860075,-1000.0,0.00028,28]
[418926639,1774567860087,-2000.92,0.00028,7]
[418926640,1774567860099,-979.16666667,0.00028,10]
[418926641,1774567860110,-933.93878572,0.00028,2]
[418926642,1774567860121,-504.0,0.00028215,14]
[418926643,1774567860133,-151.13477335,0.00028297,120]
[418926644,1774567860144,-1000.0,0.00028394,2]
[418926645,1774567860155,-500.0,0.00028394,2]
[418926646,1774567860165,-152.0,0.00028456,13]
[418926647,1774567860176,-186.93,0.00028493,2]
[418926648,1774567860186,-150.0,0.00028544,2]
[418926649,1774567860197,-1596.48011578,0.00028747,2]
[418926650,1774567860207,-498.213493,0.00028767,2]
[418926651,1774567860218,-2500.0,0.00028767,2]
[418926652,1774567860229,-1640.97,0.00028781,2]
[418926653,1774567860612,-645.0,0.000288,2]
[418926654,1774567860636,-205.0,0.0002882,30]
[418926655,1774567860655,-200.0,0.00028834,2]
[418926656,1774567860668,-1476.34,0.00028839,2]
[418926657,1774567860678,-700.0,0.00028878,21]
[418926658,1774567860687,-445.04,0.000289,7]
[418926659,1774567860696,-3985.5247,0.000289,2]
[418926660,1774567860705,-151.0,0.00029,5]
[418926661,1774567860714,-505.97356342,0.00029,2]
[418926662,1774567860723,-674.53452169,0.00029,120]
[418926663,1774567860733,-650.0,0.00029,2]
[418926664,1774567860742,-1283.9523263,0.00029041,120]
[418926665,1774567860751,-152.0,0.00029045,14]
[418926666,1774567860760,-1100.0,0.00029152,21]
[418926667,1774567860770,-504.0,0.00029231,15]
[418926668,1774567860779,-500.0,0.00029394,2]
[418926669,1774567860788,-1640.97,0.0002959,2]
[418926670,1774567860797,-152.0,0.00029635,15]
[418926671,1774567860806,-1040.0,0.00029689,2]
[418926672,1774567860816,-1262.0,0.00029741,2]
[418926673,1774567860825,-1216.0,0.00029741,2]
[418926674,1774567860834,-924.0,0.00029741,2]
[418926675,1774567860844,-1045.0,0.00029741,2]
[418926676,1774567860853,-621.0,0.00029741,2]
[418926677,1774567860863,-825.0,0.00029811,60]
[418926678,1774567860872,-200.0,0.00029834,2]
[418926679,1774567860881,-586.37519488,0.0002988,30]
[418926680,1774567860890,-154118.45561856,0.00029899,2]
[418926681,1774567860900,-79521.63666523,0.000299,2]
[418926682,1774567860909,-150.0,0.00029971,2]
[418926683,1774567860918,-500.0,0.0002998,120]
[418926684,1774567860927,-239.11371951,0.0002999,2]
[418926685,1774567860936,-117814.83205861,0.0003,5]
[418926686,1774567860945,-18598.82182677,0.0003,2]
[418926687,1774567860955,-20029.42763025,0.0003,2]
[418926688,1774567860964,-12000.0,0.0003,7]
[418926689,1774567860974,-1832.65847073,0.0003,2]
[418926690,1774567860983,-1005.42792954,0.0003,2]
[418926691,1774567860992,-151.0,0.0003,2]
[418926692,1774567861001,-150.0,0.0003,2]
[418926693,1774567861010,-321.84997208,0.0003,2]
[418926694,1774567861019,-164.33613469,0.0003,2]
[418926695,1774567861029,-150.0,0.0003,2]
[418926696,1774567861038,-191.48,0.0003,2]
[418926697,1774567861048,-5000.0,0.0003,5]
[418926698,1774567861057,-1000.0,0.0003,2]
[418926699,1774567861066,-500.0,0.0003,2]
[418926700,1774567861076,-200.0,0.0003,11]
[418926701,1774567861085,-1000.0,0.0003,20]
[418926702,1774567861095,-478.33,0.0003,10]
[418926703,1774567861104,-7540.57358884,0.0003,2]
[418926704,1774567861113,-323.26498703,0.0003,120]
[418926705,1774567861122,-200.0,0.0003,11]
[418926706,1774567861131,-200.0,0.0003,11]
[418926707,1774567861140,-200.0,0.0003,11]
[418926708,1774567861151,-286.0,0.0003,120]
[418926709,1774567861160,-310.559999,0.0003,11]
[418926710,1774567861169,-171.40965633,0.0003,120]
[418926711,1774567861178,-181.0,0.0003,120]
[418926712,1774567861187,-181.0,0.0003,120]
[418926713,1774567861197,-181.0,0.0003,120]
[418926714,1774567861206,-181.0,0.0003,120]
[418926715,1774567861215,-181.0,0.0003,120]
[418926716,1774567861224,-9500.0,0.0003,3]
[418926717,1774567861233,-1000.0,0.0003,120]
[418926718,1774567861243,-581.11629525,0.0003,4]
[418926719,1774567861252,-2000.0,0.0003,7]
[418926720,1774567861261,-150.0,0.0003,2]
[418926721,1774567861270,-4815.64331758,0.0003,3]
[418926722,1774567861279,-5093.0,0.0003,7]
[418926723,1774567861288,-2387.00670089,0.0003,120]
[418926724,1774567861298,-628.57992805,0.0003,30]
[418926725,1774567861307,-9853.0,0.0003,120]
[418926726,1774567861316,-191.73,0.0003,22]
[418926727,1774567861326,-1054.71,0.0003,30]
[418926728,1774567861335,-5238.2356,0.000301,2]
[418926729,1774567861344,-13965.81047134,0.0003013,2]
[418926730,1774567861354,-1082.62311009,0.0003013,2]
[418926731,1774567861363,-7795.15922307,0.0003013,2]
[418926732,1774567861372,-639.33319878,0.0003013,2]
[418926733,1774567861382,-203.38782314,0.0003013,2]
[418926734,1774567861391,-157.64837639,0.0003013,120]
[418926735,1774567861401,-150.0,0.00030136,20]
[418926736,1774567861410,-875.6,0.00030137,2]
[418926737,1774567861420,-179.522284,0.00030137,7]
[418926738,1774567861429,-5000.0,0.00030137,120]
[418926739,1774567861439,-250.0,0.00030137,10]
[418926740,1774567861448,-250.0,0.00030137,10]
[418926741,1774567861459,-250.0,0.00030137,10]
[418926742,1774567861469,-250.0,0.00030137,10]
[418926743,1774567861479,-250.0,0.00030137,10]
[418926744,1774567861489,-250.0,0.00030137,10]
[418926745,1774567861499,-250.0,0.00030137,10]
[418926746,1774567861508,-250.0,0.00030137,10]
[418926747,1774567861518,-250.0,0.00030137,10]
[418926748,1774567861527,-252.12358968,0.00030137,10]
[418926749,1774567861536,-15664.10855361,0.000302,2]
[418926750,1774567861546,-152.0,0.00030224,16]
[418926751,1774567861555,-504.0,0.00030246,16]
[418926752,1774567861565,-2000.0,0.000303,2]
[418926753,1774567861575,-500.0,0.00030394,2]
[418926754,1774567861584,-1640.97,0.00030399,2]
[418926755,1774567861594,-700.0,0.00030522,21]
[418926756,1774567861603,-234.42134198,0.00030685,2]
[418926757,1774567861613,-1100.0,0.00030796,21]
[418926758,1774567861622,-152.0,0.00030814,17]
[418926759,1774567861632,-200.0,0.00030834,2]
[418926760,1774567861641,-1622.43315211,0.0003084,2]
[418926761,1774567861651,-205.0,0.0003084,30]
[418926762,1774567861661,-51992.15964207,0.00031,2]
[418926763,1774567861670,-186.0,0.00031,4]
[418926765,1774567861679,-214.0,0.00031,4]
[418926766,1774567861689,-979.16666667,0.00031,120]
[418926767,1774567861698,-700.0,0.00031,2]
[418926768,1774567861707,-1476.34,0.00031002,2]
[418926769,1774567861716,-1640.97,0.00031207,2]
[418926770,1774567861726,-504.0,0.00031262,17]
[418926771,1774567861736,-6884.6926,0.000313,2]
[418926772,1774567861745,-500.0,0.00031394,2]
[418926773,1774567861755,-152.0,0.00031403,18]
[418926774,1774567861764,-19969.72251773,0.0003143,4]
[418926775,1774567861773,-6000.0,0.00031463,7]
[418926776,1774567861783,-150.0,0.0003147,2]
[418926777,1774567861792,-199.00692605,0.000315,2]
[418926778,1774567861801,-150.0,0.000315,2]
[418926779,1774567861811,-5000.0,0.000315,30]
[418926780,1774567861820,-329.72,0.00031518,7]
[418926781,1774567861830,-2418.18,0.00031518,7]
[418926782,1774567861839,-270.06,0.00031518,7]
[418926783,1774567861848,-200.0,0.00031834,2]
[418926784,1774567861858,-1721.0,0.000319,11]
[418926785,1774567861867,-456.955684,0.0003198,120]
[418926786,1774567861876,-152.0,0.00031992,19]
[418926787,1774567861886,-7000000.0,0.00032,120]
[418926788,1774567861896,-5000.0,0.00032,7]
[418926789,1774567861906,-151.0,0.00032,5]
[418926790,1774567861915,-941.4,0.00032,120]
[418926791,1774567861925,-1000.0,0.00032,120]
[418926792,1774567861934,-1014.36,0.00032,120]
[418926793,1774567861944,-212.0,0.00032,120]
[418926794,1774567861954,-1808.4,0.00032,7]
[418926795,1774567861963,-1640.97,0.00032016,2]
[418926796,1774567861973,-700.0,0.00032166,21]
[418926797,1774567861982,-825.0,0.00032263,60]
[418926798,1774567861992,-504.0,0.00032277,18]
[418926799,1774567862001,-901.72036401,0.000323,2]
[418926800,1774567862013,-500.0,0.00032394,2]
[418926801,1774567862023,-1100.0,0.0003244,21]
[418926802,1774567862032,-9048.6559,0.000325,2]
[418926803,1774567862044,-1054.71,0.000325,120]
[418926804,1774567862054,-152.0,0.00032582,20]
[418926805,1774567862064,-1262.0,0.00032741,2]
[418926806,1774567862074,-1216.0,0.00032741,2]
[418926807,1774567862083,-924.0,0.00032741,2]
[418926808,1774567862094,-1045.0,0.00032741,2]
[418926809,1774567862104,-621.0,0.00032741,2]
[418926810,1774567862113,-4872.60974112,0.000328,2]
[418926811,1774567862123,-1640.97,0.00032825,2]
[418926812,1774567862132,-200.0,0.00032834,2]
[418926813,1774567862142,-205.0,0.0003286,30]
[418926814,1774567862153,-1737.40516509,0.0003287,4]
[418926815,1774567862163,-2959.48135474,0.0003287,7]
[418926816,1774567862177,-363.85597923,0.0003287,120]
[418926817,1774567862187,-229.60666629,0.0003287,2]
[418926818,1774567862196,-433.61467762,0.00032876,2]
[418926819,1774567862206,-165.05745491,0.00032876,2]
[418926820,1774567862216,-399.139381,0.00032876,2]
[418926821,1774567862225,-500.0,0.00032876,2]
[418926822,1774567862235,-411.1140053,0.00032876,2]
[418926823,1774567862244,-500.0,0.00032876,2]
[418926824,1774567862254,-384.37992812,0.00032876,2]
[418926825,1774567862264,-500.0,0.00032876,2]
[418926826,1774567862273,-500.0,0.00032876,2]
[418926827,1774567862283,-500.0,0.00032876,2]
[418926828,1774567862292,-500.0,0.00032876,2]
[418926829,1774567862302,-500.0,0.00032876,2]
[418926830,1774567862315,-500.0,0.00032876,2]
[418926831,1774567862325,-330.00673443,0.00032876,2]
[418926832,1774567862335,-500.0,0.00032876,2]
[418926833,1774567862344,-500.0,0.00032876,2]
[418926834,1774567862354,-358.03363716,0.00032876,2]
[418926835,1774567862364,-249.3906255,0.00032876,2]
[418926836,1774567862373,-808.13082999,0.00032877,10]
[418926837,1774567862383,-347.64,0.00032877,2]
[418926838,1774567862393,-1000.0,0.00032877,15]
[418926839,1774567862404,-324.0,0.00032877,15]
[418926840,1774567862413,-875.6,0.00032877,2]
[418926841,1774567862423,-10000.0,0.00032877,120]
[418926842,1774567862432,-300.0,0.00032877,5]
[418926843,1774567862443,-500.0,0.00032877,2]
[418926844,1774567862452,-500.0,0.00032877,2]
[418926845,1774567862463,-500.0,0.00032877,2]
[418926846,1774567862472,-500.0,0.00032877,2]
[418926847,1774567862482,-389.5320248,0.00032877,2]
[418926848,1774567862492,-150.0,0.00032877,5]
[418926849,1774567862502,-500.0,0.00032877,2]
[418926850,1774567862511,-500.0,0.00032877,2]
[418926851,1774567862521,-150.0,0.00032877,2]
[418926852,1774567862531,-150.0,0.00032877,2]
[418926853,1774567862540,-150.0,0.00032877,2]
[418926854,1774567862550,-150.0,0.00032877,2]
[418926855,1774567862559,-220.09447847,0.00032877,2]
[418926856,1774567862569,-2035.25677741,0.00033,7]
[418926857,1774567862579,-51749.65968912,0.00033,2]
[418926858,1774567862588,-26610.75638218,0.00033,2]
[418926859,1774567862598,-2890.2693734,0.00033,12]
[418926860,1774567862608,-151.0,0.00033,7]
[418926861,1774567862617,-37580.75857712,0.00033,7]
[418926862,1774567862627,-5024.94735762,0.00033,30]
[418926863,1774567862636,-565.57633,0.00033,14]
[418926864,1774567862645,-750.0,0.00033,2]
[418926865,1774567862655,-150.0,0.00033043,2]
[418926866,1774567862665,-1476.34,0.00033165,2]
[418926867,1774567862674,-152.0,0.00033171,21]
[418926868,1774567862685,-504.0,0.00033292,18]
[418926869,1774567862695,-500.0,0.00033394,2]
[418926870,1774567862706,-250.0,0.00033425,5]
[418926871,1774567862715,-1222.32644761,0.000335,2]
[418926872,1774567862726,-5000.0,0.000335,30]
[418926873,1774567862736,-3599.06,0.00033546,96]
[418926874,1774567862746,-1640.97,0.00033634,2]
[418926875,1774567862755,-1650.0,0.00033699,2]
[418926876,1774567862765,-1650.0,0.00033699,2]
[418926877,1774567862775,-1633.0,0.00033699,2]
[418926878,1774567862785,-1650.0,0.00033699,2]
[418926879,1774567862795,-1650.0,0.00033699,2]
[418926880,1774567862805,-1622.0,0.00033699,2]
[418926881,1774567862814,-600.0,0.00033699,5]
[418926882,1774567862823,-11892.7858,0.000337,2]
[418926883,1774567862833,-152.0,0.00033761,22]
[418926884,1774567862842,-700.0,0.0003381,21]
[418926885,1774567862852,-200.0,0.00033834,2]
[418926886,1774567862861,-250.2003107,0.00033973,5]
[418926887,1774567862871,-14161.02205337,0.00034,4]
[418926888,1774567862880,-5500.0,0.00034,7]
[418926889,1774567862889,-540.0,0.00034,120]
[418926890,1774567862899,-200.0,0.00034,120]
[418926891,1774567862909,-2000.0,0.00034,2]
[418926892,1774567862919,-600.0,0.00034,30]
[418926893,1774567862928,-600.0,0.00034,30]
[418926894,1774567862937,-545.0,0.00034,30]
[418926895,1774567862947,-1100.0,0.00034084,21]
[418926896,1774567862956,-1600.0,0.0003411,2]
[418926897,1774567862965,-1600.0,0.0003411,2]
[418926898,1774567862975,-1553.0,0.0003411,2]
[418926899,1774567862985,-227.56931902,0.00034131,12]
[418926900,1774567862995,-504.0,0.00034308,19]
[418926901,1774567863004,-152.0,0.0003435,23]
[418926902,1774567863014,-500.0,0.00034394,2]
[418926903,1774567863023,-1640.97,0.00034443,2]
[418926904,1774567863032,-289.0,0.0003449,30]
[418926905,1774567863042,-365.0,0.0003449,30]
[418926906,1774567863051,-890.0,0.0003449,30]
[418926907,1774567863061,-1380.0,0.0003449,30]
[418926908,1774567863070,-237.0,0.0003449,30]
[418926909,1774567863079,-1746.72740437,0.0003449,2]
[418926910,1774567863089,-4000.0,0.000345,7]
[418926911,1774567863099,-902.30559932,0.00034521,5]
[418926912,1774567863108,-150.0,0.00034696,2]
[418926913,1774567863117,-155.75927077,0.00034696,82]
[418926914,1774567863127,-483.05,0.00034712,30]
[418926915,1774567863137,-825.0,0.00034716,90]
[418926916,1774567863148,-1500.0,0.00034795,2]
[418926917,1774567863157,-200.0,0.00034834,2]
[418926918,1774567863166,-494.05424195,0.0003488,120]
[418926919,1774567863176,-205.0,0.0003488,30]
[418926920,1774567863185,-15630.8688,0.000349,2]
[418926921,1774567863198,-152.0,0.00034939,24]
[418926922,1774567863207,-975.46,0.00034964,2]
[418926923,1774567863217,-1054.71,0.00035,120]
[418926924,1774567863226,-1934.56677303,0.00035,2]
[418926925,1774567863235,-151.0,0.00035,2]
[418926926,1774567863244,-151.0,0.00035,7]
[418926927,1774567863254,-5000.0,0.00035,5]
[418926928,1774567863263,-512.52156508,0.00035,2]
[418926929,1774567863273,-15000.0,0.00035,7]
[418926930,1774567863282,-150.0,0.00035,2]
[418926931,1774567863291,-163.716,0.00035,2]
[418926932,1774567863301,-150.0,0.00035,2]
[418926933,1774567863310,-574.25235177,0.00035,14]
[418926934,1774567863319,-5000.0,0.00035,30]
[418926935,1774567863328,-445.04,0.00035,30]
[418926936,1774567863338,-15871.25,0.00035,2]